Cogmind - Beta 15 @@@ ROGUE MODE // 2025.09.07 @ 18:59:38 Player: konomiyu Result: Destroyed by G-34 Mercenary with Small Laser Performance ------------- Evolutions (0) 0 Regions Visited (1) 200 Robots Destroyed (18) 90 Value Destroyed (436) 436 Prototype IDs (2) 40 Alien Tech Used (0) 0 Bonus (0) 0 TOTAL SCORE: 766 Bonus ------- None Cogmind --------- Core Integrity 0/250 Matter 258/300 Energy 224/250 System Corruption 0% Temperature Cool (6) Movement Walking (190) Ox1 Location -10/Materials Parts ------- > --- POWER (1) -------- Ion Engine > --- PROPULSION (2) --- Aluminum Leg > --- UTILITY (2) ------ Medium Storage Unit Structural Scanner > --- WEAPON (2) ------- Small Laser > --- INVENTORY (10) --- Ion Engine Light Ion Engine Heat Sink Small Storage Unit Large Storage Unit High-capacity Storage Unit Structural Scanner ECM Suite Light Armor Plating Light Assault Rifle Peak State ------------ > --- POWER ------------ Ion Engine > --- PROPULSION ------- Aluminum Leg Aluminum Leg > --- UTILITY ---------- Small Storage Unit High-capacity Storage Unit > --- WEAPON ----------- Medium Laser Medium Laser > --- INVENTORY -------- Light Ion Engine EM Pulse Gun [Rating: 7] Favorites ----------- Power Ion Engine Engine Ion Engine Propulsion Aluminum Leg Leg Aluminum Leg Utility Medium Storage Unit Device ECM Suite Storage Medium Storage Unit Weapon Medium Laser Energy Gun Medium Laser Ballistic Gun Light Assault Rifle Build | -11 -10 ------- Run | Yrd Mat Slots Evolved . | . . Power . | . . Propulsion . | . . Utility . | . . Weapon . | . . Parts Attached 24 | 5 19 Power 5 | . 5 Engine 5 | . 5 Core . | . . Reactor . | . . Propulsion 5 | 2 3 Treads . | . . Leg 5 | 2 3 Wheel . | . . Hover . | . . Flight . | . . Utility 6 | 1 5 Device 3 | . 3 Storage 3 | 1 2 Processor . | . . Hackware . | . . Protection . | . . Artifact . | . . Weapon 8 | 2 6 Energy Gun 6 | 2 4 Energy Cannon . | . . Ballistic Gun 2 | . 2 Ballistic Cannon . | . . Launcher . | . . Special Weapon . | . . Impact Weapon . | . . Slashing Weapon . | . . Piercing Weapon . | . . Special Melee Weapon . | . . Unidentified Prototypes . | . . Parts Lost 11 | . 11 Power 2 | . 2 Propulsion 4 | . 4 Utility . | . . Weapon 5 | . 5 Highest Loss Streak 4 | . 4 To Critical Strikes . | . . Average Backups 6 | 1 6 Power 2 | 1 2 Propulsion . | . . Utility 3 | . 3 Weapon . | . . Tool/Special . | . . Unused Backups 6 | . 6 Power 2 | . 2 Propulsion . | . . Utility 3 | . 3 Weapon 1 | . 1 Tool/Special . | . . Average Slot Usage (%) 88 | . 88 Engine 13 | . 13 Leg 21 | . 21 Device 8 | . 8 Storage 17 | . 17 Energy Gun 19 | . 19 Ballistic Gun 6 | . 6 Peak Build Rating 7 | 5 7 Average Rating 6 | 3 6 On Entrance 2 | . 5 Naked Turns . | . . Heaviest Build 24 | 9 24 Greatest Support 20 | 20 20 Greatest Overweight (x) 6 | . 6 Average Overweight (x) . | . . Largest Inventory Capacity 20 | 8 20 Average Capacity 9 | 6 9 Most Carried 10 | 4 10 Average Carried 6 | 2 6 Final Capacity 10 | 8 10 Final Carried 10 | 3 10 Class Distribution -------------------- 67% | Mutant 32% | Scavenger-Mutant Dominant Class ---------------- Mutant | -10/Materials Resources | -11 -10 ----------- Run | Yrd Mat Matter Collected 478 | 214 264 Remotely . | . . Salvage Created 548 | . 548 Parts 30 | . 30 Haulers Intercepted . | . . Recyclers Shooed . | . . Parts Field Recycled . | . . Retrieved Matter . | . . Parts Self-Destructed . | . . Prevented . | . . Kills | -11 -10 ------- Run | Yrd Mat Combat Hostiles Destroyed 15 | . 15 Guns 14 | . 14 Classes Destroyed 4 | . 4 Worker 1 | . 1 Watcher 2 | . 2 Swarmer 5 | . 5 Grunt 10 | . 10 Best Kill Streak 3 | . 3 Combat Bots Only 3 | . 3 Max Kills in Single Turn 2 | . 2 Gunslinging . | . . Exploded . | . . Melee . | . . Uniques/NPCs Destroyed . | . . Combat | -11 -10 -------- Run | Yrd Mat Hostile Shots Fired 144 | . 144 Missed 35 | . 35 Hits 109 | . 109 Projectile 109 | . 109 Critical Strikes 1 | . 1 Damage Taken 1193 | . 1193 Core 253 | . 253 Absorbed by Shields . | . . Core Remaining (%) 100 | 100 . Volleys Fired 68 | . 68 Largest 2 | . 2 Hottest 100 | . 100 Shots Fired 113 | . 113 Gun 113 | . 113 Cannon . | . . Launcher . | . . Special . | . . Kinetic 20 | . 20 Thermal 78 | . 78 Explosive . | . . Electromagnetic 15 | . 15 Robot Hit Streak 17 | . 17 Robot Miss Streak 5 | . 5 Penetration Max . | . . Secondary Targets 3 | . 3 Max Gunslinging Chain 1 | . 1 Shots Hit Robots 73 | . 73 Core Hits 33 | . 33 Critical Kills . | . . Critical Parts Destroyed . | . . Critical Strikes 7 | . 7 Burn 7 | . 7 Melee Attacks . | . . Impact . | . . Slashing . | . . Piercing . | . . Sneak Attacks . | . . Combat Hostiles . | . . Follow-up Attacks . | . . Damage Inflicted 1004 | . 1004 Guns 962 | . 962 Cannons . | . . Explosions 24 | . 24 Melee . | . . Ramming 18 | . 18 Kinetic 108 | . 108 Thermal 708 | . 708 Explosive . | . . Electromagnetic 170 | . 170 Impact . | . . Slashing . | . . Piercing . | . . Highest Corruption . | . . Average Corruption . | . . Corruption Purged . | . . Corruption Blocked . | . . Overload Shots . | . . Overflow Damage . | . . Projectiles . | . . Explosions . | . . Melee . | . . Knockbacks . | . . Impact . | . . Kinetic . | . . Secondary . | . . Self-Inflicted Damage 40 | . 40 Shots 1 | . 1 Rammed . | . . Targets Rammed 12 | . 12 Kicked 12 | . 12 Crushed . | . . Highest Temperature 426 | . 426 Average Temperature 127 | . 127 Received Heat Transfer 489 | . 489 Effects 3 | . 3 Shutdowns 1 | . 1 Energy Bleed 2 | . 2 Siege Activations . | . . Martial Activations . | . . Shielding Activations . | . . Robots Disrupted . | . . Combat Hostiles . | . . Robots Corrupted . | . . Combat Hostiles . | . . Parts Fried . | . . Impact Corruptions . | . . Robots Melted 1 | . 1 Combat Hostiles 1 | . 1 Parts Melted 8 | . 8 Heat Transferred 2455 | . 2455 Parts Sabotaged . | . . Parts Stolen . | . . Parts Stripped . | . . Power Chain Reactions 1 | . 1 Alert | -11 -10 ------- Run | Yrd Mat Maximum Alert Level . | . . Low Security (%) 100 | 100 100 Level 1 . | . . Level 2 . | . . Level 3 . | . . Level 4 . | . . Level 5 . | . . High Security . | . . Max Security . | . . Peak Influence 109 | . 109 Initial . | . . Average 21 | . 22 Influence Increases 436 | . 436 Destroy 0b10 Robot/C 300 | . 300 Destroy 0b10 Robot/NC 15 | . 15 Destroy Leader 54 | . 54 Successful Hack 31 | . 31 Destroy Structure 6 | . 6 Lose Combat Pursuer 30 | . 30 Influence Decreases 436 | . 436 Time Decay 335 | . 335 Lost Part 101 | . 101 Squads Dispatched 3 | . 3 Investigation 3 | . 3 Extermination . | . . Reinforcement . | . . Assault . | . . Garrison . | . . Intercept . | . . Searches Triggered . | . . Construction Impeded . | . . Haulers Reinforced . | . . Active Scanning Responses . | . . Cargo Convoy Interrupts . | . . Stealth | -11 -10 --------- Run | Yrd Mat Distress Signals 2 | . 2 Communications Jammed . | . . Distress Signals . | . . Times Spotted 31 | . 31 Peak Tracking Total 5 | . 5 Tactical Retreats 4 | . 4 Traps | -11 -10 ------- Run | Yrd Mat Traps Triggered 4 | . 4 Indirectly . | . . Trap Hack Attempts . | . . Triggered . | . . Disarmed . | . . Reprogrammed . | . . Reused . | . . Traps Extracted . | . . Installed . | . . Triggered . | . . Machines | -11 -10 ---------- Run | Yrd Mat Machines Disabled . | . . Max in Single Turn . | . . Machines Repaired . | . . Machines Dismantled . | . . Machines Sabotaged . | . . Overloaded Fab Kills . | . . Hacking | -11 -10 --------- Run | Yrd Mat Machines Accessed 8 | . 8 Terminals 7 | . 7 Fabricators . | . . Repair Stations . | . . Recycling Units 1 | . 1 Scanalyzers . | . . Garrison Access . | . . Total Hacks 21 | . 21 Successful 10 | . 10 Failed 11 | . 11 Catastrophic 2 | . 2 Database Lockouts . | . . Manual 16 | . 16 Terminals 19 | . 19 Fabricators . | . . Repair Stations . | . . Recycling Units 2 | . 2 Scanalyzers . | . . Garrison Access . | . . Terminal Hacks 9 | . 9 Record 1 | . 1 Robot Analysis 4 | . 4 Prototype ID Bank 1 | . 1 Emergency Access Points 1 | . 1 Transport Status 1 | . 1 Hauler Manifests 1 | . 1 Fabricator Hacks . | . . Repair Station Hacks . | . . Recycling Unit Hacks 1 | . 1 Retrieve Components 1 | . 1 Scanalyzer . | . . Garrison Access Hacks . | . . Unauthorized Hacks . | . . Terminals . | . . Fabricators . | . . Repair Stations . | . . Recycling Units . | . . Scanalyzers . | . . Garrison Access . | . . Data Cores Recovered . | . . Used . | . . Hacking Detections 8 | . 8 Full Trace Events . | . . Feedback Events . | . . Feedback Blocked . | . . Robot Schematics Acquired . | . . Robots Built . | . . Authchips . | . . Time . | . . Total Robot Build Rating . | . . Part Schematics Acquired . | . . Parts Built . | . . Authchips . | . . Time . | . . Total Part Build Rating . | . . Parts Repaired . | . . Time . | . . Parts Recycled . | . . Recycled Matter . | . . Retrieved Matter . | . . Retrieved Components 9 | . 9 Parts Scanalyzed . | . . Part Schematics Acquired . | . . Parts Damaged . | . . Bothacking | -11 -10 ------------ Run | Yrd Mat Used RIF Installer . | . . Robots Hacked . | . . Non-combat . | . . Combat . | . . Robot Hacks Applied . | . . Relay Couplers Released . | . . Fabnet Peak Effective % . | . . Robots Rewired . | . . Allies Hacked . | . . Hacks Repelled . | . . Allies | -11 -10 -------- Run | Yrd Mat Total Allies . | . . Largest Group . | . . Highest-Rated Group . | . . Highest-Rated Ally . | . . Total Orders . | . . Ally Attacks . | . . Total Damage . | . . Kills . | . . Allies Corrupted . | . . Allies Melted . | . . Intel | -11 -10 ------- Run | Yrd Mat Active Infowar (turns) 1025 | . 1025 Structural 467 | . 467 ECM 558 | . 558 Robot Analysis Total 4 | . 4 Derelict Logs Recovered . | . . Drone Launches . | . . Drone Recoveries . | . . Exploration | -11 -10 ------------- Run | Yrd Mat Turns Passed 1676 | 68 1608 Spaces Moved 782 | 48 734 Core 4 | 3 1 Treads . | . . Legs 778 | 45 733 Wheels . | . . Hover . | . . Flight . | . . Fastest Speed 50 | 50 120 Average Speed 165 | 115 169 Slowest Speed 350 | 120 350 Overloaded Moves . | . . Propulsion Burnouts . | . . Robots Hopped . | . . Potential Cave-ins . | . . Cave-ins Triggered . | . . Exploration Rate (%) 50 | 3 97 Regions Visited 1 Branch Regions . Pre-discovered Areas . | . . Known Exits Taken . | . . Unknown Exits Taken 1 | 1 . Scrap Searched . | . . Spaces Dug . | . . Terrain Destroyed 6 | . 6 Melee . | . . Projectile . | . . AOE 6 | . 6 Terrain Rammed . | . . Walls Destroyed . | . . Machines Disabled . | . . Actions | -11 -10 --------- Run | Yrd Mat Total 1047 | 60 987 Wait 114 | . 114 Move 781 | 47 734 Hop . | . . Pick Up 32 | 8 24 Fast Attach 2 | . 2 Attach 21 | 5 16 Detach 1 | . 1 Swap 10 | . 10 Drop 6 | . 6 Fire 68 | . 68 Melee . | . . Ram . | . . Kick 12 | . 12 Crush . | . . Escape Stasis . | . . Rewire . | . . Trap . | . . Miscellaneous . | . . Route ------- -11/Scrapyard -10/Materials (discovered 4 exits: [*Mat x3] / [*Min]) History --------- Turn | Location | Event 2 | -11/Scrapyard | Met Revision 17 5 | -11/Scrapyard | Discovered new exit (range 15) 69 | -11/Scrapyard | Entered Materials 226 | -10/Materials | Discovered new exit (range 10) 313 | -10/Materials | Build established: Mutant 629 | -10/Materials | Discovered new exit (range 15) 693 | -10/Materials | Discovered new exit (range 7) 912 | -10/Materials | Lost 4 parts (2n2w) 925 | -10/Materials | Core integrity fell below 50% 986 | -10/Materials | Lost 3 parts (1p1n1w) 1124 | -10/Materials | Core integrity fell below 20% 1286 | -10/Materials | Discovered new exit (range 15) 1437 | -10/Materials | Build established: Scavenger-Mutant 1677 | -10/Materials | Destroyed by G-34 Mercenary with Small Laser Last Messages --------------- Lgt. Ion Engine Flight Unit Flight Unit Flight Unit Lgt. Ion Engine Lgt. Ion Engine Lgt. Assault Rifle 01378_ Dropped Lgt. Assault Rifle. 01422_ T-07 Excavator is excavating. 01508_ Connecting with Terminal... >>Query(Human) Homo sapiens, dominant species in the [Solar System] until civilization in that system was presumably wiped out during the [Solar War]. 01672_ Dropped Structural Scanner. 01672_ Dropped Lgt. Assault Rifle. 01673_ Dropped Sml. Laser. 01673_ Acquired Structural Scanner. 01673_ Critical hit (Burn: +37). 01677_ Acquired Sml. Laser. Map ----- +----------------------------------------------------+ | ?## < ##### # " # # # """ # # | | ?## ##?## # # % # # # # | | ?## ##?## #########% ######+### # # | | #### ###### # % ##### ########## # | | ##### ####### % ######### # | | # # + % # | | """ + + # """ !! %%%% # | | """ # # # "T" ! ############ | | """ # # ## % % ! ##?????????? | | ### # ## % % ##?????????? | | """ ### # ## % % ##?????????? | | """ ### # + ##?????????? | | """ ### # ## ###????????? | | ### # ######### ###????????? | | """ ### # # == ## gg ###????????? | | """ ### # ! # == ## ###????????? | | ?"" ### # # = ## ###????????? | | ? ### ####### ## " ###?######?? | | ?###### #########+##### " ##??######## | | ?####?# ## % ###### ### | | ??????# < ## % | | ??????# ## ######### ####### | | ??????# ########## ## ######### ####### | | ??????# #?# """ # ## ##?????## ##???##! | | #####?# #?# """ # ## ######### ##???## """ | | ?# #?# """ + ## @## ## ##???## """ | | ## #?# # ## [ ## """ ## ##???## """ | | ## #?# # ## ## """ ## ##???## | | ! ## #?#| ?# ## ## """ ## ##???## | | ## ########## ##r ## ## ##???## | | ## # ## ## ## ## ##???## | | ## # """ ## ## ## ## ###??###### ## | | # # "R ## # ###+####%###??###### ## | | # + """ ## ##??????## ## | | + # ## T # ????? ## ## | | # # ## # ???? ## ## | | ###### ####+##+## ### ####### # ??? ?## ## | | # ^ ############### # ?? ?## ## | | "" # ##########???## # ?? ## ## | | "" + #### ### ###########??## # ?""" ## ## | | "" # ####+### ############### # """ # | | # # + + # # """ + | | # # ##### # # # " | | ###### # #???# """ """ + + # | | + + #???# """ """ # # ## # | | # # #???# """ """ # ########## # | | # # #???# "T" # # # + | | """ ###########???############### # """# # | | """ #??????????????????# # # """# # | | """ #??????????????????#"" """ # # """# # | +----------------------------------------------------+ Best States ------------- Heat Dissipation 25 Energy Generation 10 Energy Capacity 250 Matter Stores 300 Matter Capacity 300 Sight Range 16 Terrain Scan Density 10 ECM Strength 1 Evasion (%) 55 Item Schematics ----------------- None Robot Schematics ------------------ None Fabricated ------------ Nothing Repaired ---------- Nothing Alien Tech Used ----------------- None Achievements -------------- None Challenges ------------ None Game ------ Seed ClaymoresTrackerGenerator Manual? 0 Play Time 00:18:23 Cumulative 8.3 hours Start 2025.09.07 @ 18:31:01 End 2025.09.07 @ 18:59:38 Sessions 1 Manual Loads 0 Difficulty Rogue Special Mode None Game No. 12 Rogue 12 Adventurer 0 Explorer 0 Win Type - Total 0 Types 0/0/0/0/0/0/0/0/0/0 Lore% 8 Gallery% 10 Achievement% 14 Wizard Run 0 Options --------- Layout 1 ASCII 0 Keyboard 0 Movement Mouse Keybinds 0 Fullscreen 2 Font 24/Smallcaps Map View 50x35 Zoom Use 0% Tactical HUD 1 Map Filters NONE Filters NONE Steam 1 RUN: 20b64616-3c93-46e3-94f3-c8b46db62f08